bitfinex/quotes_SOLUSD_20251125
["timestamp","ask_amount","ask_price","bid_price","bid_amount"]
[1764082352594,0.72,133.95,133.87,9.35729457]
[1764082352802,9.35729457,133.94,133.88,10.01729457]
[1764082352966,9.35729457,133.93,133.88,0.66]
[1764082353161,9.35729457,133.93,133.85,26.14838448]
[1764082353496,0.72,133.95,133.86,10.01729457]
[1764082353701,9.35729457,133.93,133.87,9.35729457]
[1764082354002,9.35729457,133.95,133.9,9.35729457]
[1764082354172,9.35729457,133.95,133.92,26.13500596]
[1764082354358,0.72,134.0,133.94,9.35729457]
[1764082354565,9.35729457,134.01,133.96,9.35729457]
[1764082354774,9.01026236,134.03,133.96,9.35729457]
[1764082354993,9.35729457,133.99,133.95,9.35729457]
[1764082355202,0.82900756,134.01,133.95,9.35729457]
[1764082355375,0.82900756,134.04,133.99,9.35729457]
[1764082355564,10.90630213,134.05,134.0,9.35729457]
[1764082355874,9.35729457,134.04,133.97,0.66]
[1764082356075,9.35729457,134.04,133.99,9.35729457]
[1764082356281,9.35729457,134.06,134.0,7.46268656]
[1764082356475,9.35729457,134.05,134.0,16.81998113]
[1764082356660,0.82900756,134.08,134.02,9.35729457]
[1764082356861,10.07729457,134.09,134.04,9.35729457]
[1764082357062,10.07729457,134.09,133.94,0.66]
[1764082357063,9.35729457,134.05,133.94,0.66]
[1764082357369,9.35729457,134.05,133.87,50.0]
[1764082357370,0.82900756,134.04,133.95,0.66]
[1764082357579,1.54900756,134.04,133.95,0.66]
[1764082357889,25.11880892,134.03,133.9,0.66]
[1764082358192,8.80994492,134.01,133.9,0.66]
[1764082358503,0.82900756,134.0,133.94,9.35729457]
[1764082358865,0.82900756,134.01,133.9,7.46823004]
[1764082359111,9.35729457,133.91,133.83,8.23216618]
[1764082359394,9.35729457,133.93,133.87,9.35729457]
[1764082359762,0.72,133.96,133.88,9.35729457]
[1764082359986,0.82900756,133.98,133.91,9.35729457]
[1764082360195,9.35729457,133.98,133.93,26.13305457]
[1764082360362,9.35729457,133.99,133.93,35.49034914]
[1764082360563,9.35729457,133.98,133.93,26.13305457]
[1764082360787,0.72,134.0,133.93,26.79305457]
[1764082361086,9.35729457,133.98,133.93,8.12658702]
[1764082361275,9.35729457,133.98,133.93,0.66]
[1764082361458,9.35729457,133.96,133.91,3.5]
[1764082361891,9.35729457,133.96,133.91,4.16]
[1764082362069,8.18271015,134.0,133.92,10.01729457]
[1764082362258,9.35729457,133.98,133.93,26.13305457]
[1764082363075,0.82900756,134.01,133.94,10.01729457]
[1764082363203,0.72,134.05,133.97,9.35729457]
[1764082363517,9.35729457,134.03,133.97,9.35729457]
[1764082363682,9.35729457,134.05,133.99,9.35729457]
[1764082363879,9.35729457,134.06,134.0,9.35729457]
[1764082364083,4.22,134.1,134.01,9.35729457]
[1764082364311,9.35729457,134.07,134.03,7.46101619]
[1764082364491,9.35729457,134.05,133.99,3.5]
[1764082364700,9.35729457,134.01,133.95,16.968864]
[1764082364888,9.35729457,134.01,133.97,3.5]
[1764082365215,9.35729457,134.0,133.96,3.5]
[1764082365510,9.35729457,134.01,133.96,29.62720213]
[1764082365887,0.72,134.04,133.96,29.62720213]
[1764082366083,9.35729457,133.98,133.94,7.46547446]
[1764082366487,9.35729457,134.0,133.95,0.66]
[1764082366724,0.82900756,134.04,133.97,9.35729457]
[1764082366938,0.82900756,134.04,133.98,9.35729457]
[1764082367141,9.35729457,133.99,133.92,3.48]
[1764082367342,8.80994492,134.02,133.93,0.66]
[1764082367343,1.54900756,134.01,133.93,0.66]
[1764082367659,9.35729457,134.0,133.94,9.35729457]
[1764082367831,1.54900756,134.03,133.93,16.968864]
[1764082368039,9.35729457,134.0,133.93,16.968864]
[1764082368217,9.35729457,134.0,133.95,26.12915266]
[1764082368421,9.35729457,133.99,133.95,26.12915266]
[1764082368619,9.35729457,134.0,133.95,26.78915266]
[1764082368820,0.82900756,134.04,133.95,26.12915266]
[1764082369145,9.35729457,133.99,133.95,26.78915266]
[1764082369639,0.72,134.02,133.95,26.78915266]
[1764082369832,9.35729457,133.98,133.95,26.78915266]
[1764082370148,9.35729457,133.97,133.95,7.46547219]
[1764082370438,9.35729457,133.97,133.94,3.48]
[1764082370751,6.19404243,133.96,133.93,7.46658702]
[1764082371061,6.19404243,133.96,133.84,6.19404243]
[1764082371062,8.29226748,133.99,133.86,0.66]
[1764082371337,8.29226748,133.99,133.85,3.48]
[1764082371338,6.19404243,133.89,133.85,3.48]
[1764082371712,0.72,133.88,133.83,0.1]
[1764082371939,15.00398735,133.92,133.83,8.23215442]
[1764082372112,15.00398735,133.92,133.83,0.76]
[1764082372113,6.19404243,133.87,133.83,0.76]
[1764082372313,0.72,133.91,133.83,26.25252032]
[1764082372630,0.72,133.91,133.83,33.10656275]
[1764082372631,6.19404243,133.89,133.83,33.10656275]
[1764082372815,6.19404243,133.89,133.84,0.66]
[1764082373015,0.72,133.91,133.84,0.66]
[1764082373016,6.19404243,133.88,133.84,0.66]
[1764082373427,6.19404243,133.88,133.84,4.14]
[1764082373626,6.19404243,133.88,133.84,0.66]
[1764082373825,6.19404243,133.88,133.85,0.68]
[1764082374025,0.72,133.91,133.85,0.68]
[1764082374236,6.19404243,133.89,133.85,0.68]
[1764082374544,8.80994492,133.96,133.86,63.49917823]
[1764082374712,6.19404243,133.92,133.87,3.48]
[1764082374918,0.66,133.95,133.87,4.16]
[1764082375128,6.19404243,133.92,133.87,4.16]
[1764082375339,6.19404243,133.93,133.88,0.68]
[1764082375548,0.66,133.95,133.88,6.87404243]
[1764082375748,6.19404243,133.94,133.89,6.19404243]
[1764082375919,0.82900756,133.97,133.91,6.19404243]
[1764082376258,6.19404243,133.96,133.9,6.87404243]
[1764082376423,4.96900756,134.02,133.94,6.19404243]
[1764082376618,6.19404243,133.99,133.94,6.19404243]
[1764082377046,6.19404243,133.99,133.94,6.87404243]
[1764082377249,6.19404243,133.95,133.76,17.94]
[1764082377449,6.19404243,133.91,133.87,4.16]
[1764082377759,0.66,133.95,133.88,0.68]
[1764082377958,0.66,133.99,133.92,6.19404243]
[1764082378251,6.19404243,133.96,133.91,3.48]
[1764082378426,6.19404243,133.97,133.92,7.46714456]
[1764082378624,6.19404243,133.96,133.91,3.48]
[1764082378838,6.19404243,133.95,133.9,4.2]
[1764082379036,6.19404243,133.95,133.91,7.46761103]
[1764082379361,7.02304999,133.96,133.91,7.46761103]
[1764082379551,6.19404243,133.95,133.91,7.46761103]
[1764082380049,6.19404243,133.94,133.91,7.46761103]
[1764082380259,0.71,133.95,133.88,7.46894489]
[1764082380585,6.19404243,133.91,133.87,7.46993351]
[1764082380728,9.63895248,133.94,133.86,7.47035559]
[1764082380922,1.53900756,133.94,133.86,26.86658448]
[1764082381164,6.19404243,133.91,133.86,7.47035559]
[1764082381455,6.19404243,133.87,133.83,7.57198957]
[1764082381667,6.19404243,133.86,133.83,7.57205662]
[1764082381876,0.71,133.9,133.83,0.1]
[1764082382084,6.19404243,133.88,133.83,7.57182945]
[1764082382289,6.19404243,133.85,133.83,0.1]
[1764082382596,17.018864,133.92,133.83,0.82]
[1764082382753,6.19404243,133.9,133.83,7.01404243]
[1764082383101,6.19404243,133.84,133.83,0.1]
[1764082383260,6.19404243,133.84,133.81,0.1]
[1764082383261,25.11880892,133.87,133.81,0.1]
[1764082383460,6.19404243,133.85,133.81,0.1]
[1764082383858,6.19404243,133.82,133.81,0.1]
[1764082384390,6.19404243,133.86,133.81,0.82]
[1764082384566,9.39628413,133.86,133.82,7.47272455]
[1764082384756,4.19,133.88,133.81,0.1]
[1764082384757,9.39628413,133.83,133.81,0.1]
[1764082385461,9.39628413,133.84,133.81,7.57326471]
[1764082385671,9.39628413,133.84,133.81,0.1]
[1764082385878,9.39628413,133.84,133.82,7.47272455]
[1764082386064,10.10628413,133.83,133.81,0.1]
[1764082386382,9.39628413,133.83,133.81,0.1]
[1764082386576,9.39628413,133.84,133.81,0.1]
[1764082386787,0.71,133.86,133.81,0.1]
[1764082386788,3.48,133.88,133.82,0.72]
[1764082386986,9.39628413,133.86,133.82,0.72]
[1764082388266,9.39628413,133.85,133.81,0.1]
[1764082388466,9.39628413,133.85,133.81,0.82]
[1764082388673,9.39628413,133.86,133.81,0.82]
[1764082388983,10.93529169,133.89,133.83,9.39628413]
[1764082389184,9.39628413,133.85,133.81,0.1]
[1764082389394,9.39628413,133.87,133.81,9.49628413]
[1764082389600,9.39628413,133.84,133.81,0.1]
[1764082389963,9.39628413,133.85,133.81,0.1]
[1764082390494,0.71,133.87,133.81,7.57314956]
[1764082390790,9.00847921,133.88,133.81,7.57314956]
[1764082391007,1.53900756,133.88,133.81,7.57314956]
[1764082391293,9.39628413,133.86,133.82,0.72]
[1764082391471,9.39628413,133.87,133.82,0.72]
[1764082391675,9.39628413,133.84,133.81,7.57314956]
[1764082391879,9.39628413,133.85,133.81,7.57314956]
[1764082392392,9.39628413,133.83,133.81,0.1]
[1764082392594,10.30315929,133.82,133.81,0.1]
[1764082393890,11.01315929,133.82,133.81,0.1]
[1764082394105,10.30315929,133.79,133.78,0.1]
[1764082394894,18.47755946,133.79,133.78,0.1]
[1764082395081,11.00315929,133.79,133.78,0.1]
[1764082395490,18.47755946,133.79,133.78,0.1]
[1764082396397,10.30315929,133.79,133.78,0.1]
[1764082396897,11.00315929,133.79,133.78,0.1]
[1764082397089,0.7,133.79,133.78,0.1]
[1764082397271,10.30315929,133.79,133.78,0.1]
[1764082397468,10.30315929,133.81,133.78,0.1]
[1764082397673,10.30315929,133.79,133.78,0.1]
[1764082398286,11.00315929,133.79,133.78,0.1]
[1764082398495,1.52900756,133.82,133.78,0.1]
[1764082398775,0.82900756,133.82,133.78,0.1]
[1764082399072,0.82900756,133.87,133.79,11.02315929]
[1764082399284,10.30315929,133.83,133.79,0.72]
[1764082399490,8.80994492,133.86,133.78,0.1]
[1764082399673,10.30315929,133.83,133.78,0.1]
[1764082399999,0.82900756,133.85,133.78,0.1]
[1764082400000,10.30315929,133.82,133.78,0.1]
[1764082400178,10.30315929,133.79,133.78,0.1]
[1764082400577,17.77755946,133.79,133.78,0.1]
[1764082400771,11.00315929,133.79,133.78,0.1]
[1764082401872,18.47755946,133.79,133.78,0.1]
[1764082402068,8.30319222,133.8,133.78,0.1]
[1764082402297,10.30315929,133.79,133.78,0.1]
[1764082402486,11.13216685,133.8,133.78,0.1]
[1764082402995,0.82900756,133.81,133.78,0.82]
[1764082403172,18.60492999,133.82,133.78,0.82]
[1764082403378,11.13216685,133.82,133.78,0.82]
[1764082403580,11.13216685,133.82,133.78,0.1]
[1764082404102,10.30315929,133.81,133.78,0.1]
[1764082404600,9.72942619,133.8,133.78,0.1]
[1764082404897,10.55843375,133.79,133.78,0.1]
[1764082405512,25.11880892,133.78,133.7,7.47888937]
[1764082405800,9.72942619,133.74,133.69,0.68]
[1764082406009,9.72942619,133.75,133.71,0.68]
[1764082406171,3.48,133.77,133.72,8.25824099]
[1764082406378,9.72942619,133.75,133.72,0.1]
[1764082407275,3.48,133.77,133.72,0.78]
[1764082407588,3.48,133.81,133.72,0.78]
[1764082407905,9.72942619,133.79,133.72,10.50942619]
[1764082408122,9.72942619,133.74,133.72,0.1]
[1764082408811,9.72942619,133.73,133.72,0.1]
[1764082408988,0.6,133.76,133.72,0.1]
[1764082408989,9.72942619,133.76,133.72,0.1]
[1764082409181,10.55843375,133.78,133.73,0.68]
[1764082409386,18.03343673,133.78,133.73,0.68]
[1764082409593,9.72942619,133.77,133.72,0.1]
[1764082409782,9.72942619,133.76,133.72,0.78]
[1764082410002,9.72942619,133.75,133.72,0.1]
[1764082410309,9.72942619,133.76,133.72,0.1]
[1764082410481,9.72942619,133.76,133.72,0.78]
[1764082410682,9.72942619,133.75,133.72,8.25800761]
[1764082410887,9.72942619,133.76,133.72,8.25800761]
[1764082411212,9.72942619,133.75,133.72,0.1]
[1764082411706,9.72942619,133.74,133.72,0.1]
[1764082411909,9.72942619,133.75,133.72,0.1]
[1764082412120,9.72942619,133.75,133.72,7.57822219]
[1764082412318,9.72942619,133.76,133.72,8.25822219]
[1764082412631,0.82900756,133.81,133.74,17.20662074]
[1764082412912,7.47104968,133.85,133.72,0.1]
[1764082412913,9.72942619,133.77,133.72,0.1]
[1764082413134,9.72942619,133.76,133.72,0.1]
[1764082413622,13.11895248,133.8,133.72,0.1]
[1764082413623,0.82900756,133.78,133.73,9.72942619]
[1764082413819,0.6,133.83,133.74,9.72942619]
[1764082413992,10.55843375,133.82,133.75,9.72942619]
[1764082414189,37.34760096,133.88,133.75,9.72942619]
[1764082414190,0.82900756,133.87,133.79,9.72942619]
[1764082414404,9.72942619,133.85,133.78,9.72942619]
[1764082414598,17.20079685,133.85,133.8,7.47384155]
[1764082415108,3.48,133.88,133.81,10.40942619]
[1764082415281,9.72942619,133.87,133.81,0.68]
[1764082415483,9.72942619,133.86,133.81,0.68]
[1764082415684,9.72942619,133.84,133.79,7.474157]
[1764082415911,9.72942619,133.85,133.8,0.68]
[1764082416115,9.72942619,133.84,133.8,0.68]
[1764082416322,9.72942619,133.83,133.78,8.15485535]
[1764082416501,9.72942619,133.83,133.78,7.47485535]
[1764082416814,18.02992257,133.85,133.8,7.47384155]
[1764082417013,18.02992257,133.85,133.76,0.68]
[1764082417014,9.72942619,133.82,133.76,0.68]
[1764082417224,9.72942619,133.8,133.76,7.47607655]
[1764082417402,9.72942619,133.81,133.76,26.84626793]
[1764082417602,9.72942619,133.81,133.77,0.68]
[1764082418224,16.28079775,133.86,133.78,9.72942619]
[1764082418528,10.55843375,133.85,133.79,0.68]
[1764082418819,9.72942619,133.84,133.8,7.47384155]
[1764082419199,9.72942619,133.83,133.8,0.68]
[1764082419412,0.82900756,133.85,133.8,0.68]
[1764082419719,9.72942619,133.84,133.8,0.68]
[1764082419910,9.72942619,133.83,133.79,7.47416637]
[1764082420112,9.72942619,133.83,133.76,9.72942619]
[1764082420422,9.72942619,133.83,133.79,0.68]
[1764082420634,9.72942619,133.86,133.79,0.68]
[1764082420796,9.72942619,133.83,133.77,16.308864]
[1764082420994,9.72942619,133.83,133.76,3.48]
[1764082420995,9.72942619,133.82,133.76,3.48]
[1764082421232,9.72942619,133.81,133.75,0.68]
[1764082421410,10.55843375,133.81,133.75,0.68]
[1764082421723,9.72942619,133.8,133.75,0.68]
[1764082422298,9.72942619,133.81,133.75,0.68]
[1764082422503,1.42900756,133.83,133.75,0.68]
[1764082422701,0.82900756,133.83,133.76,9.72942619]
[1764082422903,9.72942619,133.81,133.76,7.47607655]
[1764082423115,8.30084342,133.84,133.77,0.68]
[1764082423426,9.72942619,133.82,133.77,0.68]
[1764082423608,0.82900756,133.84,133.77,0.68]
[1764082423806,9.72942619,133.83,133.77,0.68]
[1764082424010,9.72942619,133.86,133.79,9.72942619]
[1764082424221,9.72942619,133.85,133.79,9.72942619]
[1764082424522,9.72942619,133.85,133.8,0.68]
[1764082424722,9.72942619,133.84,133.8,0.68]
[1764082424907,9.72942619,133.83,133.8,8.15381418]
[1764082425107,9.72942619,133.84,133.8,8.15381418]
[1764082425419,9.72942619,133.85,133.8,8.15381418]
[1764082425616,9.72942619,133.83,133.79,0.68]
[1764082425821,1.42900756,133.86,133.79,0.68]
[1764082426001,9.72942619,133.84,133.79,0.68]
[1764082426605,9.72942619,133.83,133.79,0.68]
[1764082426932,9.72942619,133.84,133.8,7.47384155]
[1764082427125,10.55843375,133.84,133.8,7.47384155]
[1764082427326,10.55843375,133.84,133.8,8.15384155]
[1764082428237,0.82900756,133.84,133.8,26.83844543]
[1764082428416,10.55843375,133.86,133.81,0.68]
[1764082428617,17.19995539,133.86,133.81,0.68]
[1764082428818,9.72942619,133.86,133.81,0.68]
[1764082429118,17.20022744,133.86,133.81,0.68]
[1764082429524,17.20022744,133.86,133.81,8.15288782]
[1764082430026,17.20022744,133.86,133.82,0.68]
[1764082430226,9.72942619,133.85,133.82,0.68]
[1764082430655,9.72942619,133.86,133.82,0.68]
[1764082431216,0.82900756,133.87,133.82,8.15259405]
[1764082431433,9.72942619,133.86,133.82,8.15259405]
[1764082431642,9.72942619,133.85,133.82,0.68]
[1764082431822,9.72942619,133.86,133.82,0.68]
[1764082432024,9.72942619,133.86,133.82,8.15263539]
[1764082432241,17.19954647,133.87,133.82,8.15263539]
[1764082432549,17.19954647,133.87,133.83,0.68]
[1764082432718,9.72942619,133.86,133.83,0.68]
[1764082432919,11.7787767,133.88,133.83,0.68]
[1764082433118,9.72942619,133.86,133.83,0.68]
[1764082433321,4.30900756,133.88,133.8,18.68407496]
[1764082433520,9.72942619,133.86,133.81,0.71]
[1764082433921,17.1993597,133.87,133.81,0.71]
[1764082434145,9.72942619,133.87,133.81,10.43942619]
[1764082434355,9.72942619,133.87,133.82,0.71]
[1764082434541,9.72942619,133.85,133.79,0.71]
[1764082434854,29.62323366,133.88,133.8,9.72942619]
[1764082435028,9.72942619,133.86,133.8,9.72942619]
[1764082435221,9.72942619,133.86,133.81,0.71]
[1764082435435,17.20024064,133.86,133.82,7.47272455]
[1764082435733,17.19962156,133.87,133.82,7.47272455]
[1764082435946,17.19962156,133.87,133.83,0.71]
[1764082436749,9.72942619,133.85,133.81,7.47301741]
[1764082437253,10.55843375,133.86,133.82,0.71]
[1764082437447,0.82900756,133.87,133.82,0.71]
[1764082437646,9.72942619,133.86,133.82,0.71]
[1764082437836,9.72942619,133.87,133.82,0.71]
[1764082438037,4.30900756,133.88,133.82,0.71]
[1764082438346,17.19957339,133.87,133.82,8.1826463]
[1764082438528,9.72942619,133.86,133.82,8.1826463]
[1764082438731,9.72942619,133.88,133.83,0.66]
[1764082438928,9.72942619,133.89,133.83,10.38942619]
[1764082439322,9.72942619,133.89,133.84,0.66]
[1764082440635,9.72942619,133.89,133.85,7.47104968]
[1764082440934,0.82900756,133.92,133.86,9.72942619]
[1764082441268,18.22268815,133.98,133.91,9.72942619]
[1764082441474,17.39368059,133.98,133.92,9.72942619]
[1764082441752,0.2,133.98,133.96,9.72942619]
[1764082441944,0.2,133.98,133.92,10.38942619]
[1764082441945,0.2,133.98,133.97,9.72942619]
[1764082442431,0.2,133.98,133.95,4.14]
[1764082442633,0.2,133.98,133.96,0.66]
[1764082442842,0.2,133.98,133.96,8.12475437]
[1764082443046,0.2,134.0,133.97,9.72942619]
[1764082443230,0.2,134.0,133.98,9.72942619]
[1764082443431,0.2,134.0,133.98,10.38942619]
[1764082443631,0.2,134.0,133.99,0.66]
[1764082443932,0.2,134.0,133.99,4.14]
[1764082444128,0.2,134.0,133.97,3.46]
[1764082444333,0.2,134.0,133.96,0.66]
[1764082444751,0.2,134.0,133.96,8.124818]
[1764082444959,0.2,134.0,133.97,9.72942619]
[1764082445263,0.2,134.0,133.97,10.38942619]
[1764082445446,0.2,134.0,133.98,0.66]
[1764082445775,0.2,134.0,133.99,13.18942619]
[1764082445946,0.82900756,134.09,134.02,9.72942619]
[1764082446135,9.72942619,134.09,134.02,9.72942619]
[1764082446337,9.72942619,134.06,134.0,4.12]
[1764082446548,9.72942619,134.06,134.0,0.66]
[1764082446766,9.72942619,134.05,134.01,0.66]
[1764082446959,0.82900756,134.04,133.98,0.66]
[1764082447261,9.72942619,134.03,133.98,0.66]
[1764082447442,0.82900756,134.05,133.98,0.66]
[1764082447649,9.72942619,134.04,133.98,0.66]
[1764082448350,9.72942619,134.02,133.98,0.66]
[1764082448544,9.72942619,134.03,133.98,0.66]
[1764082448761,9.72942619,134.02,133.98,8.12363559]
[1764082448944,9.72942619,133.99,133.94,4.12]
[1764082449261,9.72942619,134.0,133.94,4.12]
[1764082449563,9.72942619,134.0,133.95,0.66]
[1764082449759,1.50900756,134.02,133.95,4.12]
[1764082449961,7.46112041,134.03,133.95,4.12]
[1764082449962,0.82900756,134.03,133.95,4.12]
[1764082450268,9.72942619,134.02,133.96,4.12]
[1764082450574,9.72942619,134.03,133.96,13.84942619]
[1764082450735,9.72942619,134.03,133.98,26.12330197]
[1764082451142,9.72942619,134.03,133.98,26.78330197]
[1764082451464,9.72942619,134.03,133.99,0.66]
[1764082451668,9.72942619,134.04,133.99,0.66]
[1764082451840,9.72942619,134.03,133.99,0.66]
[1764082452042,0.68,134.04,133.98,7.46380056]
[1764082452256,8.96902608,134.05,133.99,0.66]
[1764082452568,6.18905155,134.02,133.98,7.46380056]
[1764082452870,6.18905155,134.02,133.98,8.12380056]
[1764082453052,6.18905155,134.03,133.99,0.66]
[1764082453364,6.18905155,134.04,133.99,0.66]
[1764082453560,6.18905155,134.03,133.99,0.66]
[1764082454063,0.82900756,134.05,133.99,0.66]
[1764082454262,7.01805911,134.07,134.0,9.64905155]
[1764082454869,6.18905155,134.06,134.01,0.66]
[1764082455162,7.01805911,134.07,134.01,0.66]
[1764082455463,6.18905155,134.06,134.01,0.66]
[1764082455645,0.82900756,134.05,134.01,0.66]
[1764082455844,6.18905155,134.05,134.01,0.66]
[1764082456165,0.82900756,134.06,134.01,0.66]
[1764082456463,1.50900756,134.09,134.02,6.18905155]
[1764082456667,6.18905155,134.08,134.03,0.66]
[1764082456959,6.18905155,134.06,134.02,7.46140845]
[1764082457171,6.18905155,134.06,134.01,8.12191847]
[1764082457357,6.18905155,134.06,134.02,0.66]
[1764082457549,0.82900756,134.09,134.04,6.18905155]
[1764082457748,1.50900756,134.1,134.05,6.18905155]
[1764082457958,1.50900756,134.1,134.05,6.84905155]
[1764082458270,0.82900756,134.1,134.05,0.66]
[1764082458454,7.01805911,134.1,134.05,0.66]
[1764082458656,7.69805911,134.1,134.05,0.66]
[1764082458951,15.15521186,134.1,134.05,0.66]
[1764082459162,15.15521186,134.1,134.05,8.11981881]
[1764082459463,1.50900756,134.1,134.05,14.30887036]
[1764082459644,7.01805911,134.11,134.06,6.84905155]
[1764082459842,15.15481272,134.11,134.06,0.66]
[1764082460042,7.69805911,134.11,134.06,0.66]
[1764082460443,0.68,134.1,134.05,32.29862791]
[1764082460639,7.01805911,134.09,134.03,11.58066212]
[1764082460866,6.18905155,134.08,134.01,0.66]
[1764082461068,6.18905155,134.08,134.03,7.46101619]
[1764082461269,0.68,134.08,134.03,13.65006774]
[1764082461479,0.82900756,134.09,134.04,6.84905155]
[1764082461658,0.68,134.1,134.05,6.18905155]
[1764082461860,6.86905155,134.1,134.05,6.18905155]
[1764082462061,7.69805911,134.1,134.05,0.66]
[1764082462246,1.50900756,134.1,134.05,0.66]
[1764082462451,7.69805911,134.1,134.05,0.66]
[1764082462967,0.82900756,134.1,134.07,7.45879018]
[1764082463192,7.68805911,134.1,134.07,7.45879018]
[1764082463359,6.85905155,134.09,134.05,7.45939061]
[1764082463558,6.85905155,134.09,134.02,0.7]
[1764082463559,6.18905155,134.07,134.04,7.4603854]
[1764082463760,6.18905155,134.05,133.99,0.7]
[1764082464059,0.82900756,134.06,133.99,26.82098864]
[1764082464259,0.82900756,134.06,134.0,6.88905155]
[1764082464260,7.68805911,134.06,134.0,6.88905155]
[1764082464577,6.18905155,134.05,134.0,0.7]
[1764082465079,0.82900756,134.06,134.01,13.65118124]
[1764082465249,7.01805911,134.07,134.01,32.30650546]
[1764082465450,7.01805911,134.07,134.01,33.00650546]
[1764082466671,6.18905155,134.06,134.01,26.81745391]
[1764082467083,14.47700671,134.07,134.01,26.11745391]
[1764082467372,6.18905155,134.02,133.86,50.0]
[1764082467553,6.18905155,133.97,133.87,26.1447673]
[1764082467746,6.18905155,133.96,133.9,6.18905155]
[1764082467968,8.80994492,133.98,133.88,4.16]
[1764082468153,0.67,134.01,133.94,6.18905155]
[1764082468362,6.18905155,133.99,133.93,10.92607886]
[1764082468674,6.18905155,133.99,133.94,6.18905155]
[1764082469070,6.85905155,134.0,133.95,6.88905155]
[1764082469445,6.85905155,134.0,133.95,0.7]
[1764082469666,6.18905155,133.98,133.93,0.7]
[1764082469868,6.18905155,133.98,133.92,6.18905155]
[1764082470076,6.18905155,133.97,133.9,3.46]
[1764082470243,6.85905155,133.98,133.92,6.18905155]
[1764082470446,6.85905155,133.98,133.93,7.46658702]
[1764082470658,6.85905155,133.98,133.92,6.88905155]
[1764082470855,14.32293457,133.98,133.92,6.88905155]
[1764082471055,6.85905155,133.97,133.91,6.18905155]
[1764082471369,6.18905155,133.95,133.89,6.88905155]
[1764082471557,6.85905155,133.94,133.88,6.18905155]
[1764082471750,6.85905155,133.94,133.88,6.88905155]
[1764082472088,6.18905155,133.93,133.88,0.7]
[1764082472375,13.65679164,133.91,133.85,13.65993093]
[1764082472577,14.99899647,133.91,133.85,13.65993093]
[1764082472782,6.18905155,133.9,133.85,7.47087938]
[1764082472952,6.18905155,133.9,133.84,25.56720122]
[1764082472953,6.18905155,133.9,133.84,14.36047148]
[1764082473250,6.18905155,133.89,133.84,7.47141993]
[1764082473454,0.67,133.88,133.83,13.66111491]
[1764082473668,6.18905155,133.89,133.83,6.88905155]
[1764082473851,6.85905155,133.89,133.83,14.36110707]
[1764082474578,0.67,133.89,133.85,6.18905155]
[1764082474776,6.18905155,133.9,133.85,6.18905155]
[1764082474959,6.85905155,133.9,133.85,6.88905155]
[1764082475282,3.46,133.92,133.86,0.7]
[1764082475477,10.31905155,133.92,133.87,6.18905155]
[1764082475872,9.47994492,133.91,133.82,0.7]
[1764082476167,9.47994492,133.91,133.8,0.1]
[1764082476168,6.18905155,133.9,133.84,6.18905155]
[1764082476357,9.47994492,133.91,133.86,6.18905155]
[1764082476557,6.85905155,133.93,133.87,6.18905155]
[1764082476755,14.99899647,133.94,133.88,6.18905155]
[1764082476981,15.66899647,133.94,133.88,6.88905155]
[1764082477176,8.80994492,133.94,133.89,6.88905155]
[1764082477479,8.80994492,133.94,133.9,6.18905155]
[1764082477781,14.99899647,133.95,133.9,0.7]
[1764082478086,4.95900756,133.96,133.91,6.88905155]
[1764082478377,15.66899647,133.95,133.89,6.18905155]
[1764082478554,6.18905155,133.94,133.89,7.46831927]
[1764082478756,14.32508111,133.94,133.88,13.65824115]
[1764082478979,6.85905155,133.93,133.88,7.4691896]
[1764082479260,14.99899647,133.92,133.87,14.35884867]
[1764082479454,15.66899647,133.92,133.87,14.35884867]
[1764082479656,9.47994492,133.92,133.87,14.35884867]
[1764082479883,15.66899647,133.92,133.87,14.35884867]
[1764082480078,9.47994492,133.92,133.87,8.16979712]
[1764082480268,14.32677848,133.91,133.87,7.46979712]
[1764082480464,14.99899647,133.89,133.84,13.66044952]
[1764082480777,6.18905155,133.86,133.8,6.28905155]
[1764082480978,14.99899647,133.87,133.81,6.18905155]
[1764082481283,14.99899647,133.87,133.81,6.88905155]
[1764082481668,14.99899647,133.87,133.82,6.18905155]
[1764082482159,16.28043647,133.86,133.82,0.7]